bitfinex-derivatives/quotes_BTCF0:USTF0_20250722
["timestamp","ask_amount","ask_price","bid_price","bid_amount"]
[1753197620861,0.76423402,119190.0,119180.0,0.72298434]
[1753197621260,0.3480285,119190.0,119180.0,0.72298434]
[1753197621461,1.12503402,119190.0,119180.0,0.13231434]
[1753197621662,1.12503402,119190.0,119180.0,0.72999184]
[1753197622469,0.7088285,119190.0,119180.0,0.72999184]
[1753197622660,1.12503402,119190.0,119180.0,0.74925184]
[1753197622861,1.12503402,119190.0,119180.0,0.79358184]
[1753197623357,1.12503402,119190.0,119180.0,0.74925184]
[1753197623860,1.13345118,119190.0,119180.0,0.74925184]
[1753197624062,0.71724566,119190.0,119180.0,0.74925184]
[1753197624466,1.13345118,119190.0,119180.0,0.74925184]
[1753197625364,0.71724566,119190.0,119180.0,0.74925184]
[1753197625556,1.13345118,119190.0,119180.0,0.74925184]
[1753197626155,1.77205118,119190.0,119180.0,0.02398129]
[1753197626361,0.3479267,119170.0,119160.0,0.11758305]
[1753197626659,0.3479267,119170.0,119160.0,0.71217305]
[1753197626866,0.76413222,119170.0,119160.0,0.71217305]
[1753197627168,0.76413222,119170.0,119160.0,0.75650305]
[1753197627169,0.3479267,119170.0,119160.0,0.75650305]
[1753197627662,0.76413222,119170.0,119160.0,0.75650305]
[1753197627864,0.76413222,119170.0,119160.0,0.76450305]
[1753197628070,1.12493222,119170.0,119160.0,0.72017305]
[1753197628264,1.12493222,119170.0,119160.0,0.07200305]
[1753197628570,1.12493222,119170.0,119160.0,0.66622]
[1753197628863,0.7087267,119170.0,119160.0,0.7198]
[1753197629164,0.7084567,119170.0,119160.0,0.75187]
[1753197629468,0.7084567,119170.0,119160.0,0.79246]
[1753197629768,1.12466222,119170.0,119160.0,0.79246]
[1753197629968,1.12466222,119170.0,119160.0,0.75187]
[1753197630164,0.7087267,119170.0,119160.0,0.7198]
[1753197630371,1.12493222,119170.0,119160.0,0.66622]
[1753197630663,1.12493222,119170.0,119160.0,0.008]
[1753197630866,0.3479407,119160.0,119150.0,0.06332227]
[1753197631073,1.12494622,119160.0,119150.0,0.04154454]
[1753197632267,0.7084707,119160.0,119150.0,0.14845454]
[1753197632464,0.7084707,119160.0,119150.0,0.87510759]
[1753197632856,0.7094707,119160.0,119150.0,0.87510759]
[1753197633259,1.12567622,119160.0,119150.0,0.87510759]
[1753197633470,1.12567622,119160.0,119150.0,0.78977454]
[1753197633661,0.7094707,119160.0,119150.0,0.78977454]
[1753197633857,1.12567622,119160.0,119150.0,0.78977454]
[1753197634267,1.12667622,119160.0,119150.0,0.90088876]
[1753197634468,0.7104707,119160.0,119150.0,0.90088876]
[1753197634664,1.12667622,119160.0,119150.0,0.90088876]
[1753197634972,0.7104707,119160.0,119150.0,0.90088876]
[1753197635269,1.12667622,119160.0,119150.0,0.85614571]
[1753197635463,1.12667622,119160.0,119150.0,0.90088876]
[1753197635865,0.7104707,119160.0,119150.0,0.88595224]
[1753197636176,1.12667622,119160.0,119150.0,0.88595224]
[1753197636573,0.7104707,119160.0,119150.0,0.88595224]
[1753197636869,1.12694622,119160.0,119150.0,0.78551107]
[1753197637068,1.12694622,119160.0,119150.0,0.73193107]
[1753197637665,1.12694622,119160.0,119150.0,0.71335185]
[1753197639459,0.7107407,119160.0,119150.0,0.7580949]
[1753197639665,1.12694622,119160.0,119150.0,0.7580949]
[1753197640273,1.12694622,119160.0,119150.0,0.69409185]
[1753197640475,1.12694622,119160.0,119150.0,0.0975149]
[1753197640672,1.12694622,119160.0,119150.0,0.05277185]
[1753197641174,1.12694622,119160.0,119150.0,0.02296532]
[1753197642166,0.3475789,119140.0,119130.0,0.75027]
[1753197642366,1.12458442,119140.0,119130.0,0.79052]
[1753197642565,1.12458442,119140.0,119130.0,0.85187]
[1753197642764,1.12458442,119140.0,119130.0,0.79052]
[1753197643277,0.7083789,119140.0,119130.0,0.79052]
[1753197643475,1.0636799,119140.0,119130.0,0.79052]
[1753197643777,1.0646799,119140.0,119130.0,0.8578095]
[1753197644170,1.0646799,119140.0,119130.0,0.8175595]
[1753197644365,1.4254799,119140.0,119130.0,0.02863]
[1753197644567,0.347593,119130.0,119120.0,0.71901]
[1753197644770,1.07224283,119130.0,119120.0,0.10651]
[1753197644966,0.2395371,119120.0,119110.0,0.05587]
[1753197645172,0.3476212,119110.0,119100.0,0.02980653]
[1753197645370,1.0637222,119110.0,119100.0,0.02980653]
[1753197645566,1.0637222,119110.0,119100.0,0.00289293]
[1753197645567,1.8754022,119110.0,119100.0,0.00289293]
[1753197645770,0.3742935,119080.0,119070.0,0.05968959]
[1753197645973,0.3742935,119080.0,119050.0,0.01348859]
[1753197645974,0.10807,119060.0,119050.0,0.01348859]
[1753197646172,0.10807,119060.0,119040.0,0.08725]
[1753197646173,0.3567258,119050.0,119040.0,0.08725]
[1753197646378,1.0728268,119050.0,119040.0,0.18885]
[1753197646771,0.7351358,119050.0,119040.0,0.1275]
[1753197647072,1.0904368,119050.0,119040.0,0.08725]
[1753197647368,0.7351358,119050.0,119040.0,0.08725]
[1753197647780,1.3792558,119050.0,119040.0,0.10651]
[1753197648077,1.3792558,119050.0,119040.0,0.10851]
[1753197648078,1.80487408,119050.0,119040.0,0.10851]
[1753197648376,1.38783408,119050.0,119040.0,0.11051]
[1753197648587,1.38783408,119050.0,119030.0,0.06155]
[1753197648588,0.3743499,119040.0,119030.0,0.0002]
[1753197648875,0.3743781,119020.0,119010.0,0.13048199]
[1753197649079,0.2936423,119010.0,119000.0,0.17899927]
[1753197649279,0.1856146,118980.0,118970.0,0.10437716]
[1753197649473,0.12568,118980.0,118970.0,0.63319586]
[1753197649673,0.06235,118980.0,118970.0,1.5925387]
[1753197650077,0.06235,118980.0,118970.0,1.00748]
[1753197650383,0.06235,118970.0,118960.0,0.01890354]
[1753197650573,0.10807,118970.0,118960.0,1.19445644]
[1753197650773,0.0002,118980.0,118970.0,0.1680188]
[1753197651086,0.06255,118990.0,118980.0,0.1680046]
[1753197651276,0.06235,118990.0,118980.0,0.2626146]
[1753197651478,0.06235,118990.0,118980.0,1.3270946]
[1753197651877,0.0002,119000.0,118990.0,0.1679905]
[1753197652078,0.06255,119010.0,119000.0,0.1679764]
[1753197652380,0.2303122,119010.0,119000.0,0.74277]
[1753197652678,0.10807,119010.0,119000.0,0.9107463]
[1753197652875,0.2760322,119010.0,119000.0,0.74277]
[1753197653272,0.2760322,119010.0,119000.0,0.71392]
[1753197653471,0.2936422,119010.0,119000.0,0.06576]
[1753197653670,0.2303404,118990.0,118980.0,0.09461]
[1753197653871,0.2303404,118990.0,118980.0,1.10689]
[1753197654081,0.06235,118990.0,118980.0,1.6919345]
[1753197654277,0.06235,118990.0,118980.0,1.2748945]
[1753197654483,0.06235,118990.0,118980.0,1.6899345]
[1753197654977,0.2303404,118990.0,118980.0,1.6899345]
[1753197655183,0.2303404,118990.0,118980.0,0.45541]
[1753197655484,0.2936704,118990.0,118980.0,0.71504]
[1753197655676,0.2760604,118990.0,118980.0,0.8830445]
[1753197655871,0.2760604,118990.0,118980.0,0.9118945]
[1753197656077,0.2760604,118990.0,118980.0,1.6897345]
[1753197656283,0.2303404,118990.0,118980.0,1.2726945]
[1753197656483,0.2303404,118990.0,118980.0,1.6897345]
[1753197656678,0.2313404,118990.0,118980.0,1.6897345]
[1753197657077,0.2313404,118990.0,118980.0,1.2726945]
[1753197657276,0.2313404,118990.0,118980.0,1.6897345]
[1753197657584,0.1689904,118990.0,118980.0,1.6897345]
[1753197658484,0.2313404,118990.0,118980.0,1.29152759]
[1753197658884,0.2313404,118990.0,118980.0,1.12352309]
[1753197658885,0.2770604,118990.0,118980.0,1.12352309]
[1753197659090,0.2946704,118990.0,118980.0,1.09467309]
[1753197659276,0.7117104,118990.0,118980.0,0.73387309]
[1753197659481,0.7117104,118990.0,118980.0,0.68689309]
[1753197659482,1.0725104,118990.0,118980.0,0.68689309]
[1753197659988,1.0725104,118990.0,118980.0,0.6488]
[1753197660292,0.2936845,118980.0,118970.0,0.8819786]
[1753197660479,0.2303545,118980.0,118970.0,1.6886686]
[1753197660882,0.2303545,118980.0,118970.0,0.74281]
[1753197661082,0.2760745,118980.0,118970.0,0.74281]
[1753197661287,0.2760745,118980.0,118970.0,0.71396]
[1753197661484,0.2735458,118990.0,118980.0,0.07535]
[1753197661677,0.001,118990.0,118980.0,1.0404545]
[1753197661882,0.1679904,118990.0,118980.0,1.0404545]
[1753197662477,0.1679904,118990.0,118980.0,0.6234145]
[1753197662680,1.0715104,118990.0,118980.0,0.06576]
[1753197663487,0.6544704,118990.0,118980.0,0.06576]
[1753197663684,0.2946704,118990.0,118980.0,0.2337645]
[1753197663889,0.2946704,118990.0,118980.0,1.2526045]
[1753197664287,0.2313404,118990.0,118980.0,1.2814545]
[1753197664682,0.001,118990.0,118980.0,1.71733784]
[1753197664985,0.0002,119000.0,118990.0,0.2626004]
[1753197665179,0.0002,119010.0,119000.0,0.2625862]
[1753197665383,0.2305086,119020.0,119010.0,0.2625721]
[1753197665587,0.5500877,119030.0,119020.0,0.167948]
[1753197665588,0.361,119030.0,119020.0,0.167948]
[1753197665794,0.06235,119030.0,119020.0,1.8247918]
[1753197665988,0.1679339,119030.0,119020.0,1.6881864]
[1753197666292,1.7302839,119030.0,119020.0,1.2580115]
[1753197666684,1.7302839,119030.0,119020.0,1.3237715]
[1753197667092,1.7302839,119030.0,119020.0,1.7408115]
[1753197667286,1.7302839,119030.0,119020.0,0.72348]
[1753197667287,2.2126539,119030.0,119020.0,0.72348]
[1753197667592,1.7956139,119030.0,119020.0,0.72348]
[1753197667788,2.1564139,119030.0,119020.0,0.72348]
[1753197668090,1.7956139,119030.0,119020.0,0.72348]
[1753197668391,2.1574139,119030.0,119020.0,0.72348]
[1753197668780,2.5744539,119030.0,119020.0,0.72348]
[1753197669386,2.5744539,119030.0,119020.0,0.65772]
[1753197670089,0.304108,119020.0,119010.0,0.06911]
[1753197670290,1.081948,119020.0,119010.0,0.72631]
[1753197671590,1.081948,119020.0,119010.0,0.6572]
[1753197671786,1.082948,119020.0,119010.0,0.6572]
[1753197672888,1.082948,119020.0,119010.0,0.72631]
[1753197673290,0.665908,119020.0,119010.0,0.8942721]
[1753197673594,0.06853,119020.0,119010.0,1.2945321]
[1753197673891,0.001,119020.0,119010.0,1.8796201]
[1753197674103,1.5012,119030.0,119020.0,0.167948]
[1753197674294,1.501,119030.0,119020.0,1.054358]
[1753197674491,1.6689339,119030.0,119020.0,1.054358]
[1753197674689,1.501,119030.0,119020.0,1.054358]
[1753197674999,1.6689339,119030.0,119020.0,1.054358]
[1753197675192,1.6679339,119030.0,119020.0,1.054358]
[1753197675387,1.6679339,119030.0,119020.0,0.637318]
[1753197675594,1.6679339,119030.0,119020.0,1.054358]
[1753197676091,1.7374639,119030.0,119020.0,0.637318]
[1753197676292,1.7374639,119030.0,119020.0,0.46937]
[1753197677495,1.75460779,119030.0,119020.0,0.46937]
[1753197677700,1.75460779,119030.0,119020.0,0.637318]
[1753197678089,1.75460779,119030.0,119020.0,1.054358]
[1753197678397,1.75462967,119030.0,119020.0,1.054358]
[1753197678800,1.68809967,119030.0,119020.0,1.054358]
[1753197678996,2.18505967,119030.0,119020.0,0.06911]
[1753197680404,0.304108,119020.0,119010.0,0.89427]
[1753197680599,0.32127377,119020.0,119010.0,0.89427]
[1753197680800,0.32127377,119020.0,119010.0,0.89011]
[1753197681396,0.30147377,119020.0,119010.0,1.29037]
[1753197681800,0.25264377,119020.0,119010.0,1.70741]
[1753197682401,0.25264377,119020.0,119010.0,1.28917]
[1753197682402,0.01716577,119020.0,119010.0,1.28917]
[1753197682602,0.18511377,119020.0,119010.0,1.28917]
[1753197682802,0.18511377,119020.0,119010.0,1.70621]
[1753197683505,0.01716577,119020.0,119010.0,1.70621]
[1753197683805,0.01716577,119020.0,119010.0,1.96187092]
[1753197684006,1.7776597,119030.0,119020.0,0.167948]
[1753197684305,1.79442821,119030.0,119020.0,0.637318]
[1753197684805,1.84325821,119030.0,119020.0,0.276518]
[1753197685197,1.86305821,119030.0,119020.0,0.889778]
[1753197685402,1.86405821,119030.0,119020.0,0.889778]
[1753197685804,1.86405821,119030.0,119020.0,0.237058]
[1753197686105,1.86605821,119030.0,119020.0,0.889098]
[1753197686502,1.86605821,119030.0,119020.0,1.249898]
[1753197686709,1.86605821,119030.0,119020.0,1.289358]
[1753197686908,1.84625821,119030.0,119020.0,1.289358]
[1753197687209,1.84625821,119030.0,119020.0,0.637318]
[1753197687410,1.84625821,119030.0,119020.0,1.289358]
[1753197688008,2.20705821,119030.0,119020.0,0.928558]
[1753197688210,1.84625821,119030.0,119020.0,0.928558]
[1753197688512,1.86605821,119030.0,119020.0,0.928558]
[1753197689313,1.86605821,119030.0,119020.0,0.889098]
[1753197689509,1.86605821,119030.0,119020.0,0.975218]
[1753197689708,1.82407391,119030.0,119020.0,1.336018]
[1753197689913,1.82407391,119030.0,119020.0,0.80727]
[1753197690114,1.82407391,119030.0,119020.0,0.975218]
[1753197693312,0.13632851,119030.0,119020.0,1.138648]
[1753197693617,0.0002,119040.0,119030.0,0.3607939]
[1753197693815,1.7356359,119050.0,119040.0,0.3410598]
[1753197694007,1.8040659,119050.0,119040.0,1.16443]
[1753197694213,1.8040659,119050.0,119040.0,1.3323498]
[1753197694407,1.81234705,119050.0,119040.0,0.80363]
[1753197694610,2.59018705,119050.0,119040.0,0.6586]
[1753197695317,2.59418705,119050.0,119040.0,0.6586]
[1753197695515,2.5859059,119050.0,119040.0,0.9287097]
[1753197695715,2.1688659,119050.0,119040.0,0.9287097]
[1753197696715,2.1688659,119050.0,119040.0,0.76079]
[1753197697114,2.1708659,119050.0,119040.0,0.76079]
[1753197698017,2.1708659,119050.0,119040.0,0.65712]
[1753197698721,2.5879059,119050.0,119040.0,0.65712]
[1753197699022,2.5879059,119050.0,119040.0,0.0104]
[1753197699218,2.5879059,119050.0,119040.0,0.65656]
[1753197699422,2.5879059,119050.0,119040.0,0.0104]
[1753197699615,0.3828639,119030.0,119020.0,0.208328]
[1753197699816,0.4232,119030.0,119020.0,1.419028]
[1753197700020,0.5911339,119030.0,119020.0,1.419028]
[1753197700219,0.5911339,119030.0,119020.0,0.773748]
[1753197700919,2.0921339,119030.0,119020.0,1.418348]
[1753197701121,1.9242,119030.0,119020.0,1.44837681]
[1753197701322,1.5634,119030.0,119020.0,1.39213681]
[1753197701523,1.5634,119030.0,119020.0,1.80917681]
[1753197701819,0.001,119030.0,119020.0,1.97720881]
[1753197702126,0.168123,119040.0,119030.0,0.3566939]
[1753197702320,1.8627735,119050.0,119040.0,0.3566797]
[1753197702521,1.8142735,119050.0,119040.0,1.84431219]
[1753197702722,0.2303168,119050.0,119040.0,1.84431219]
[1753197702922,0.3627541,119060.0,119050.0,0.3371056]
[1753197703118,0.3142541,119060.0,119050.0,1.1345056]
[1753197703426,1.8142541,119060.0,119050.0,0.7174656]
[1753197703623,1.8142541,119060.0,119050.0,1.15704793]
[1753197703828,1.8818341,119060.0,119050.0,0.51214]
[1753197704024,1.8818341,119060.0,119050.0,1.15638]
[1753197704324,1.8818341,119060.0,119050.0,1.3212856]
[1753197705024,1.8858341,119060.0,119050.0,1.3212856]
[1753197706029,1.8858341,119060.0,119050.0,1.7383256]
[1753197706421,1.8858341,119060.0,119050.0,1.3212856]
[1753197706816,1.8858341,119060.0,119050.0,1.15338]
[1753197707127,1.8888341,119060.0,119050.0,1.15338]
[1753197707722,2.2496341,119060.0,119050.0,0.79258]
[1753197708022,2.2496341,119060.0,119050.0,0.8221557]
[1753197708921,1.8888341,119060.0,119050.0,0.8417157]
[1753197709123,1.8468579,119060.0,119050.0,1.3805257]
[1753197709528,1.5694,119060.0,119050.0,1.7787457]
[1753197709729,1.7372916,119060.0,119050.0,1.7787457]
[1753197710119,1.7372916,119060.0,119050.0,1.80128803]
[1753197710322,1.7372916,119060.0,119050.0,1.38424803]
[1753197710519,1.7855916,119060.0,119050.0,1.80128803]
[1753197711424,1.5694,119060.0,119050.0,1.80128803]
[1753197711724,1.507,119060.0,119050.0,1.88921159]
[1753197711925,0.007,119060.0,119050.0,1.88921159]
[1753197712917,0.007,119060.0,119050.0,3.05093159]
[1753197713431,0.007,119060.0,119050.0,3.6659924]
[1753197713630,0.007,119060.0,119050.0,3.4980004]
[1753197713929,1.5626,119070.0,119060.0,0.3566516]
[1753197713930,0.0002,119070.0,119060.0,0.3566516]
[1753197714124,0.0626,119080.0,119070.0,0.3566375]
[1753197714331,1.7302634,119080.0,119070.0,1.7754375]
[1753197714829,1.5624,119080.0,119070.0,1.7754375]
[1753197715026,1.7302634,119080.0,119070.0,1.7714375]
[1753197715629,1.5624,119080.0,119070.0,1.7714375]
[1753197715930,1.7362634,119080.0,119070.0,1.7714375]
[1753197716131,1.7362634,119080.0,119070.0,1.7707575]
[1753197717030,1.7362634,119080.0,119070.0,1.77914536]
[1753197717332,1.7362634,119080.0,119070.0,1.77866536]
[1753197717526,1.7845634,119080.0,119070.0,1.77866536]
[1753197718522,1.5684,119080.0,119070.0,1.77866536]
[1753197719034,0.0684,119080.0,119070.0,1.77866536]
[1753197719534,0.006,119080.0,119070.0,1.77866536]
[1753197719729,1.5626,119090.0,119080.0,0.2526134]
[1753197719929,1.5626,119090.0,119080.0,0.7174234]
[1753197719930,1.7302493,119090.0,119080.0,0.7174234]
[1753197720136,1.7785493,119090.0,119080.0,1.1344634]
[1753197720524,1.7978293,119090.0,119080.0,0.7174234]
[1753197720837,1.7978293,119090.0,119080.0,1.3179234]
[1753197721037,1.7978293,119090.0,119080.0,0.6770034]
[1753197721243,1.7978293,119090.0,119080.0,0.8666434]
[1753197721831,1.7978293,119090.0,119080.0,1.2274434]
[1753197722034,1.8008293,119090.0,119080.0,1.2744734]
[1753197722636,1.8008293,119090.0,119080.0,1.6915134]
[1753197723329,1.8008293,119090.0,119080.0,1.7289334]
[1753197723529,1.8008293,119090.0,119080.0,1.6915134]
[1753197725634,1.8008293,119090.0,119080.0,1.6918734]
[1753197725833,1.8008293,119090.0,119080.0,0.6366334]
[1753197726033,1.8008293,119090.0,119080.0,1.2081634]
[1753197726434,1.8008293,119090.0,119080.0,1.2277234]
[1753197726738,1.8008293,119090.0,119080.0,1.2747534]
[1753197727940,1.8008293,119090.0,119080.0,1.2745534]
[1753197729434,1.8008293,119090.0,119080.0,0.6366334]
[1753197729636,1.8008293,119090.0,119080.0,0.68916386]
[1753197729839,1.8008293,119090.0,119080.0,1.32672386]
[1753197730143,1.8008293,119090.0,119080.0,1.32664386]
[1753197731340,1.8008293,119090.0,119080.0,1.30414221]
[1753197731531,2.5786693,119090.0,119080.0,0.67150881]
[1753197731736,2.5786693,119090.0,119080.0,0.66397382]
[1753197732133,2.5756693,119090.0,119080.0,0.66397382]
[1753197732334,1.7978293,119090.0,119080.0,0.66449382]
[1753197732533,2.2148693,119090.0,119080.0,0.66449382]
[1753197732738,1.7978293,119090.0,119080.0,0.68354645]
[1753197733538,1.7978293,119090.0,119080.0,0.85140985]
[1753197733738,1.7978293,119090.0,119080.0,0.68354645]
[1753197733939,1.7978293,119090.0,119080.0,0.85140985]
[1753197734243,1.7978293,119090.0,119080.0,1.34803866]
[1753197734434,1.7978293,119090.0,119080.0,1.74258484]
[1753197734632,0.3799893,119090.0,119080.0,1.77805484]
[1753197734942,0.3799893,119090.0,119080.0,1.36101484]
[1753197735143,0.3799893,119090.0,119080.0,1.77805484]
[1753197735744,0.3799893,119090.0,119080.0,1.74258484]
[1753197736842,0.3799893,119090.0,119080.0,1.32554484]
[1753197737742,1.61382,119100.0,119090.0,0.3501693]
[1753197738046,0.11362,119100.0,119090.0,1.18051699]
[1753197738645,0.2908852,119100.0,119090.0,1.18051699]
[1753197738845,0.3832052,119100.0,119090.0,1.18051699]
[1753197739046,0.3832052,119100.0,119090.0,1.15648818]
[1753197739344,0.3832052,119100.0,119090.0,1.18651699]
[1753197739546,0.3832052,119100.0,119090.0,1.18651144]
[1753197740140,0.3832052,119100.0,119090.0,0.51496214]
[1753197740345,0.3832052,119100.0,119090.0,1.07648333]
[1753197740543,0.3832052,119100.0,119090.0,0.42066333]
[1753197740747,0.3832052,119100.0,119090.0,1.05794333]
[1753197740943,0.3832052,119100.0,119090.0,1.22579263]
[1753197741140,0.3832052,119100.0,119090.0,1.29006263]
[1753197741341,0.3832052,119100.0,119090.0,1.70710263]
[1753197741641,0.3832052,119100.0,119090.0,0.70397263]
[1753197741840,0.3832052,119100.0,119090.0,1.34113263]
[1753197742241,0.3832052,119100.0,119090.0,0.70397263]
[1753197742438,0.3832052,119100.0,119090.0,1.17308333]
[1753197743445,0.3832052,119100.0,119090.0,0.53612333]
[1753197743946,0.3832052,119100.0,119090.0,0.39941333]
[1753197744239,0.3832052,119100.0,119090.0,0.38927333]
[1753197744444,0.8002452,119100.0,119090.0,1.02579333]
[1753197744648,0.3832052,119100.0,119090.0,1.02579333]
[1753197744946,0.81734589,119100.0,119090.0,0.64252]
[1753197745446,0.81734589,119100.0,119090.0,1.1711692]
[1753197745447,0.40030589,119100.0,119090.0,1.1711692]
[1753197745645,0.40030589,119100.0,119090.0,1.19364253]
[1753197745846,0.40030589,119100.0,119090.0,1.02579333]
[1753197746046,0.40030589,119100.0,119090.0,0.66499333]
[1753197746545,0.3832052,119100.0,119090.0,0.66499333]
[1753197747346,0.3832052,119100.0,119090.0,0.84298263]
[1753197747748,0.3832052,119100.0,119090.0,1.20378263]
[1753197748250,0.3832052,119100.0,119090.0,1.26805263]
[1753197749045,0.21537,119100.0,119090.0,1.26805263]
[1753197749250,0.19578,119100.0,119090.0,1.72056263]
[1753197749650,0.21537,119100.0,119090.0,1.30352263]
[1753197749850,0.21537,119100.0,119090.0,1.72056263]
[1753197750050,0.3832052,119100.0,119090.0,1.72056263]
[1753197750450,0.21537,119100.0,119090.0,1.75059144]
[1753197750649,0.3832052,119100.0,119090.0,1.75059144]
[1753197750852,0.3832052,119100.0,119090.0,1.33355144]
[1753197751051,0.3832052,119100.0,119090.0,1.71512144]
[1753197751251,0.3832052,119100.0,119090.0,1.71312144]
[1753197751650,0.3832052,119100.0,119090.0,1.12823214]
[1753197752551,0.3832052,119100.0,119090.0,1.27360811]
[1753197753548,0.3832052,119100.0,119090.0,1.10575881]
[1753197753752,0.3832052,119100.0,119090.0,1.27360811]
[1753197754647,0.3832052,119100.0,119090.0,1.10575881]
[1753197754847,0.3832052,119100.0,119090.0,1.27360811]
[1753197755055,0.3832052,119100.0,119090.0,0.81731881]
[1753197757451,0.8002452,119100.0,119090.0,0.67046881]
[1753197757655,1.1610452,119100.0,119090.0,0.69298311]
[1753197757954,0.7440052,119100.0,119090.0,0.67030881]
[1753197758255,1.1610452,119100.0,119090.0,0.67030881]
[1753197758455,1.1610452,119100.0,119090.0,0.03602881]
[1753197758754,1.1610452,119100.0,119090.0,0.67054881]
[1753197760058,0.7440052,119100.0,119090.0,0.67054881]
[1753197760248,1.1610452,119100.0,119090.0,0.67054881]
[1753197760654,1.1610452,119100.0,119090.0,0.66982881]
[1753197760848,1.1610452,119100.0,119090.0,0.03602881]
[1753197761049,1.1610452,119100.0,119090.0,0.66982881]
[1753197761955,0.7440052,119100.0,119090.0,0.66982881]
[1753197762155,0.7440052,119100.0,119090.0,0.67918881]
[1753197762457,0.7440052,119100.0,119090.0,0.77544881]
[1753197763857,0.3832052,119100.0,119090.0,0.77544881]
[1753197764052,0.3832052,119100.0,119090.0,0.81978173]
[1753197764259,0.3832052,119100.0,119090.0,0.78975292]
[1753197764451,0.3832052,119100.0,119090.0,0.78899292]
[1753197764654,0.3832052,119100.0,119090.0,1.36121212]
[1753197764849,0.15512,119100.0,119090.0,1.81138212]
[1753197765157,0.2770617,119110.0,119100.0,0.2520552]
[1753197765353,0.2768617,119110.0,119100.0,1.15804601]
[1753197765652,0.2768617,119110.0,119100.0,1.79160601]
[1753197765857,0.2768617,119110.0,119100.0,1.7615552]
[1753197766053,0.3798317,119110.0,119100.0,1.7615552]
[1753197766252,0.3798317,119110.0,119100.0,1.80663673]
[1753197766458,0.3798317,119110.0,119100.0,1.7655552]
[1753197766756,0.3798317,119110.0,119100.0,1.3485152]
[1753197767258,0.3798317,119110.0,119100.0,1.7655552]
[1753197767557,0.3798317,119110.0,119100.0,1.79559998]
[1753197768550,0.3798317,119110.0,119100.0,1.84068151]
[1753197768749,0.3616917,119110.0,119100.0,1.84004151]
[1753197769352,0.3616917,119110.0,119100.0,1.42300151]
[1753197769556,0.3616917,119110.0,119100.0,1.20712151]
[1753197769759,0.3616917,119110.0,119100.0,1.90837698]
[1753197770156,0.3798317,119110.0,119100.0,1.90837698]
[1753197770351,0.3798317,119110.0,119100.0,0.85877698]
[1753197770557,0.3798317,119110.0,119100.0,1.86285545]
[1753197770965,0.3798317,119110.0,119100.0,1.44581545]
[1753197771155,0.06236,119110.0,119100.0,1.80112552]
[1753197771359,0.06236,119110.0,119100.0,1.81616227]
[1753197771561,1.7770381,119120.0,119110.0,0.252041]
[1753197771759,1.7768381,119120.0,119110.0,1.11874491]
[1753197772965,1.7949781,119120.0,119110.0,0.76343484]
[1753197773165,1.7949781,119120.0,119110.0,1.11874491]
[1753197773463,1.7949781,119120.0,119110.0,1.08874843]
[1753197774261,1.7768381,119120.0,119110.0,1.08874843]
[1753197774461,1.7768381,119120.0,119110.0,1.09074843]
[1753197774662,1.7768381,119120.0,119110.0,0.73543836]
[1753197774862,1.7949781,119120.0,119110.0,1.12074491]
[1753197775761,1.7949781,119120.0,119110.0,0.76543484]
[1753197775962,1.7949781,119120.0,119110.0,1.09824755]
[1753197777465,1.5,119120.0,119110.0,1.09824755]
[1753197777667,0.0004,119130.0,119120.0,0.350127]
[1753197777865,0.0002,119130.0,119120.0,2.12331374]
[1753197778260,0.0002,119130.0,119120.0,2.49331374]
[1753197778564,1.5002,119140.0,119130.0,0.3501128]
[1753197778758,1.5,119140.0,119130.0,1.08867663]
[1753197778959,0.28908522,119150.0,119140.0,0.3500987]
[1753197779158,0.28888522,119150.0,119140.0,1.71926253]
[1753197779366,1.78888522,119150.0,119140.0,1.69680877]
[1753197779664,1.74694392,119150.0,119140.0,1.69680877]
[1753197779865,1.57916952,119150.0,119140.0,1.69680877]
[1753197780267,1.74693422,119150.0,119140.0,1.3414987]
[1753197780561,2.16705429,119150.0,119140.0,0.06005]
[1753197780765,0.3797788,119140.0,119130.0,0.2560128]
[1753197781067,0.73508887,119140.0,119130.0,0.67313]
[1753197781267,0.73508887,119140.0,119130.0,0.69053]
[1753197781562,0.07064268,119170.0,119150.0,0.0419381]
[1753197781760,0.06236,119170.0,119160.0,1.69666067]
[1753197781956,0.06236,119180.0,119170.0,0.2975265]
[1753197782158,0.3186782,119190.0,119180.0,0.2425824]
[1753197782359,0.06236,119190.0,119180.0,1.69819247]
[1753197782558,0.07923465,119200.0,119190.0,0.3500284]
[1753197782763,0.24692895,119200.0,119190.0,1.05236484]
[1753197782967,0.2300543,119200.0,119190.0,1.68496484]
[1753197783168,0.2300543,119200.0,119190.0,1.74544183]
[1753197783368,0.2767243,119200.0,119190.0,1.74544183]
[1753197783569,0.2861943,119200.0,119190.0,0.81508]
[1753197783772,0.3297443,119200.0,119190.0,0.9827883]
[1753197783967,0.3297443,119200.0,119190.0,0.18232]
[1753197784166,0.3796943,119200.0,119190.0,0.9826284]
[1753197784568,0.3796943,119200.0,119190.0,1.04885173]
[1753197784766,0.3796943,119200.0,119190.0,0.84801333]
[1753197785964,0.3796943,119200.0,119190.0,1.01572173]
[1753197786268,0.3796943,119200.0,119190.0,1.04885173]
[1753197786664,0.3796943,119200.0,119190.0,0.88114333]
[1753197787065,0.3796943,119200.0,119190.0,1.04885173]
[1753197787769,0.3796943,119200.0,119190.0,0.88114333]
[1753197788371,0.3796943,119200.0,119190.0,0.84801333]
[1753197788572,0.3796943,119200.0,119190.0,1.20881333]
[1753197789473,0.3796943,119200.0,119190.0,1.40761173]
[1753197789666,1.90092666,119210.0,119200.0,0.17835]
[1753197789968,1.7021,119210.0,119200.0,1.12263136]
[1753197790174,1.8697802,119210.0,119200.0,1.12263136]
[1753197790376,1.8697802,119210.0,119200.0,0.7068443]
[1753197790575,1.8506402,119210.0,119200.0,0.7068443]
[1753197791165,1.8506402,119210.0,119200.0,0.3460443]
[1753197791970,1.8506402,119210.0,119200.0,0.17835]
[1753197792274,1.8697802,119210.0,119200.0,0.17835]
[1753197793669,1.8697802,119210.0,119200.0,0.17935]
[1753197793876,2.64636726,119210.0,119200.0,0.001]
[1753197794875,2.28556726,119210.0,119200.0,0.001]
[1753197795067,1.8697802,119210.0,119200.0,0.001]
[1753197795267,2.28556726,119210.0,119200.0,0.02886]
[1753197795472,2.64636726,119210.0,119200.0,0.05853]
[1753197795673,2.2305802,119210.0,119200.0,0.05853]
[1753197796470,2.2305802,119210.0,119200.0,0.03975]
[1753197796774,2.2305802,119210.0,119200.0,0.01008]
[1753197797178,2.64636726,119210.0,119200.0,0.01008]
[1753197797575,2.64636726,119210.0,119200.0,0.001]
[1753197797974,0.2501443,119200.0,119190.0,0.62968]
[1753197798279,1.15608136,119200.0,119190.0,0.62968]
[1753197799283,1.15608136,119200.0,119190.0,0.63168]
[1753197800076,1.15608136,119200.0,119190.0,0.002]
[1753197800480,0.3603965,119170.0,119160.0,0.02748593]